[Event "Reykjavik Open 2022"]
[Site "Reykjavik"]
[Date "2022.04.07"]
[Round "2.5"]
[White "Song, Julien"]
[Black "Sadhwani, Raunak"]
[Result "1/2-1/2"]
[ECO "A88"]
[WhiteElo "2352"]
[BlackElo "2616"]
[Annotator "RC"]
[PlyCount "113"]
[EventDate "2022.04.06"]
[EventCountry "ISL"]
[SourceTitle "playchess.com"]
[Source "ChessBase"]
[SourceQuality "1"]
[TimeControl "40/5400+30:1800+30"]

1. d4 {[%emt 0:00:04]} f5 {[%emt 0:00:10]} 2. g3 {[%emt 0:01:18]} Nf6 {[%emt 0:00:15]} 3. Bg2 {[%emt 0:00:14]} g6 {[%emt 0:00:07]} 4. Nf3 {[%emt 0:00:56]} Bg7 {[%emt 0:00:06]} 5. O-O {[%emt 0:00:34]} O-O {[%emt 0:00:05]} 6. c4 {[%emt 0:00:58]} d6 {[%emt 0:00:13]} 7. Nc3 {[%emt 0:00:33]} c6 {[%emt 0:00:05]} 8. Qc2 {[%emt 0:01:22]} Na6 {[%emt 0:00:25]} 9. Rb1 {[%emt 0:01:07]} Nc7 {[%emt 0:00:19]} 10. b4 {[%emt 0:08:19]} Be6 {[%emt 0:00:36]} 11. Nd2 {[%emt 0:06:32]} f4 {[%emt 0:09:41]} 12. Rb3 {[%emt 0:12:57]} fxg3 {[%emt 0:25:08]} 13. hxg3 {[%emt 0:01:36]} Qd7 {[%emt 0:00:03]} 14. b5 {[%emt 0:04:22]} Bh3 {[%emt 0:10:08]} 15. bxc6 {[%emt 0:01:35]} bxc6 {[%emt 0:00:46]} 16. Nf3 {[%emt 0:05:29]} Bxg2 {[%emt 0:00:54]} 17. Kxg2 {[%emt 0:00:58]} Ne6 {[%emt 0:00:21]} 18. Ne4 {[%emt 0:10:16]} Rac8 {[%emt 0:16:10]} 19. Nxf6+ {[%emt 0:19:20]} exf6 {[%emt 0:00:23]} 20. e3 {[%emt 0:16:41]} f5 {[%emt 0:09:06]} 21. Bd2 {[%emt 0:00:16]} Rce8 {[%emt 0:07:25]} 22. Rfb1 {[%emt 0:02:24]} Nd8 {[%emt 0:00:01]} 23. Ba5 {[%emt 0:00:40]} Re7 {[%emt 0:12:04]} 24. Bxd8 {[%emt 0:00:05]} Qxd8 {[%emt 0:00:02]} 25. Rb7 {[%emt 0:00:20]} Qe8 {[%emt 0:03:19]} 26. Qa4 {[%emt 0:01:49]} Ref7 {[%emt 0:01:02]} 27. Rxf7 {[%emt 0:00:51]} Rxf7 {[%emt 0:00:08]} 28. Ng5 {[%emt 0:00:26]} Re7 {[%emt 0:04:40]} 29. Qb4 {[%emt 0:00:16]} c5 {[%emt 0:00:45]} 30. dxc5 {[%emt 0:00:54]} Qc6+ {[%emt 0:00:00]} 31. Kg1 {[%emt 0:00:17]} dxc5 {[%emt 0:00:30]} 32. Qb8+ {[%emt 0:00:28]} Bf8 {[%emt 0:00:54]} 33. Qb5 {[%emt 0:02:13]} Qxb5 {[%emt 0:00:33]} 34. Rxb5 {[%emt 0:00:07]} h6 {[%emt 0:00:17]} 35. Nf3 {[%emt 0:00:12]} Rc7 {[%emt 0:00:10]} 36. Ne5 {[%emt 0:01:01]} Kg7 {[%emt 0:00:08]} 37. a4 {[%emt 0:00:48]} Kf6 {[%emt 0:00:24]} 38. Nd3 {[%emt 0:00:32]} Bd6 {[%emt 0:00:03]} 39. Kg2 {[%emt 0:00:31]} Rc6 {[%emt 0:01:03]} 40. Kf3 {[%emt 0:00:00]} g5 {[%emt 0:00:00]} 41. e4 {[%emt 0:09:40]} h5 {[%emt 0:04:17]} 42. Ke3 {[%emt 0:01:59]} h4 {[%emt 0:05:28]} 43. gxh4 {[%emt 0:00:39]} gxh4 {[%emt 0:00:03]} 44. f4 {[%emt 0:02:28]} fxe4 {[%emt 0:00:28]} 45. Kxe4 {[%emt 0:00:20]} Ke6 {[%emt 0:11:12]} 46. Rb7 {[%emt 0:05:36]} Ra6 {[%emt 0:00:30]} 47. Rh7 {[%emt 0:00:39]} Rxa4 {[%emt 0:00:15]} 48. Rh6+ {[%emt 0:01:13]} Ke7 {[%emt 0:00:24]} 49. Kd5 {[%emt 0:01:59]} Ra3 {[%emt 0:00:50]} 50. Nxc5 {[%emt 0:02:30]} Bxc5 {[%emt 0:02:28]} 51. Kxc5 {[%emt 0:00:16]} h3 {[%emt 0:00:08]} 52. Kb4 {[%emt 0:01:16]} Rf3 {[%emt 0:00:17]} 53. Kb5 {[%emt 0:01:52]} Rb3+ {[%emt 0:00:40]} 54. Ka4 {[%emt 0:00:48]} Rf3 {[%emt 0:00:16]} 55. Kb5 {[%emt 0:00:10]} Rb3+ {[%emt 0:00:06]} 56. Ka4 {[%emt 0:00:04]} Rf3 {[%emt 0:00:03]} 57. Kb5 {[%emt 0:00:03]} 1/2-1/2

[Event "Reykjavik Open 2022"]
[Site "Reykjavik"]
[Date "2022.04.07"]
[Round "2.6"]
[White "Praggnanandhaa R"]
[Black "Brunello, Marina"]
[Result "1/2-1/2"]
[ECO "D12"]
[WhiteElo "2612"]
[BlackElo "2352"]
[Annotator "TA"]
[PlyCount "124"]
[EventDate "2022.04.06"]
[EventCountry "ISL"]
[SourceTitle "playchess.com"]
[Source "ChessBase"]
[SourceQuality "1"]
[TimeControl "40/5400+30:1800+30"]

{[%evp 77,124,-8,-8,-8,-8,-15,0,0,0,-8,-8,-8,-8,-8,-8,-8,-22,-8,-1,-1,-8,-8,-8,-8,-8,-8,0,-8,-8,-52,-59,-21,-27,-37,0,-8,0,0,0,0,0,0,0,0,0,0,0,0,0]} 1. d4 {[%emt 0:00:58]} d5 {[%emt 0:00:06]} 2. c4 {[%emt 0:00:04]} c6 {[%emt 0:00:02]} 3. Nf3 {[%emt 0:00:15]} Nf6 {[%emt 0:00:04]} 4. e3 {[%emt 0:00:11]} Bf5 {[%emt 0:00:15]} 5. Nc3 {[%emt 0:00:21]} e6 {[%emt 0:00:06]} 6. Nh4 {[%emt 0:00:12]} Be4 {[%emt 0:00:10]} 7. f3 {[%emt 0:00:06]} Bg6 {[%emt 0:00:03]} 8. Qb3 {[%emt 0:00:18]} Qc7 {[%emt 0:00:05]} 9. Bd2 {[%emt 0:00:10]} Be7 {[%emt 0:01:25]} 10. O-O-O {[%emt 0:00:40]} dxc4 {[%emt 0:05:56]} 11. Qxc4 {[%emt 0:00:26]} a6 {[%emt 0:02:47]} 12. Nxg6 {[%emt 0:17:01]} hxg6 {[%emt 0:00:07]} 13. Qb3 {[%emt 0:04:10]} c5 {[%emt 0:12:19]} 14. d5 {[%emt 0:10:08]} exd5 {[%emt 0:00:23]} 15. Nxd5 {[%emt 0:02:10]} Nxd5 {[%emt 0:00:05]} 16. Qxd5 {[%emt 0:00:10]} Nc6 {[%emt 0:00:03]} 17. h4 {[%emt 0:10:29]} Nb4 {[%emt 0:05:46]} 18. Qe4 {[%emt 0:04:55]} O-O-O {[%emt 0:06:46]} 19. a3 {[%emt 0:05:19]} Nc6 {[%emt 0:07:37]} 20. Be2 {[%emt 0:01:02]} Kb8 {[%emt 0:02:25]} 21. Kb1 {[%emt 0:03:13]} Bf6 {[%emt 0:03:19]} 22. Bc1 {[%emt 0:02:33]} Rxd1 {[%emt 0:12:45]} 23. Bxd1 {[%emt 0:01:41]} Ne7 {[%emt 0:00:09]} 24. Bb3 {[%emt 0:09:00]} Nf5 {[%emt 0:00:14]} 25. Rd1 {[%emt 0:00:54]} Nd6 {[%emt 0:04:46]} 26. Qf4 {[%emt 0:02:40]} Rd8 {[%emt 0:01:46]} 27. Bc2 {[%emt 0:05:20]} Ka7 {[%emt 0:04:47]} 28. g4 {[%emt 0:02:56]} Qe7 {[%emt 0:09:57]} 29. g5 {[%emt 0:02:43]} Be5 {[%emt 0:00:05]} 30. Qg4 {[%emt 0:00:09]} Nb5 {[%emt 0:01:52]} 31. Rxd8 {[%emt 0:04:44]} Qxd8 {[%emt 0:00:04]} 32. Qc4 {[%emt 0:02:30]} Qb6 {[%emt 0:05:50]} 33. Ka2 {[%emt 0:00:10]} Nd6 {[%emt 0:00:34]} 34. Qd5 {[%emt 0:00:29]} Bg3 {[%emt 0:00:05]} 35. e4 {[%emt 0:01:29]} c4 {[%emt 0:03:17]} 36. e5 {[%emt 0:02:36]} Nb5 {[%emt 0:00:12]} 37. a4 {[%emt 0:04:16]} Nc7 {[%emt 0:03:33]} 38. Qxf7 {[%emt 0:01:09]} c3 {[%emt 0:01:52]} 39. Qxg6 $2 {[%emt 0:01:10]} ({And not} 39. Qxg7 {[#]} Bf4 $1 $15) (39. f4 $18) 39... Qg1 $11 {[%emt 0:00:32]} 40. Qd6 {[%emt 0:00:00]} Qxc1 {[%emt 0:00:00]} 41. Qd4+ $1 {[%emt 0:08:05]} Kb8 {[%emt 0:07:36]} 42. Qd8+ {[%emt 0:00:38]} Ka7 {[%emt 0:00:13]} 43. Qd4+ {[%emt 0:00:08]} b6 {[%emt 0:14:53]} 44. Qxc3 {[%emt 0:00:41]} Nd5 {[%emt 0:00:14]} 45. Qd4 {[%emt 0:03:40]} Qxc2 {[%emt 0:01:07]} 46. Qxd5 {[%emt 0:00:05]} Qf5 {[%emt 0:00:26]} 47. a5 {[%emt 0:05:22]} Qxe5 {[%emt 0:01:06]} 48. Qd7+ {[%emt 0:01:04]} Qc7 {[%emt 0:00:18]} 49. axb6+ {[%emt 0:04:03]} Kxb6 {[%emt 0:00:08]} 50. Qd4+ {[%emt 0:00:04]} Kb5 {[%emt 0:01:56]} 51. Qd5+ {[%emt 0:00:28]} Kb4 {[%emt 0:01:32]} 52. Qb3+ {[%emt 0:01:13]} Kc5 {[%emt 0:00:13]} 53. h5 {[%emt 0:00:38]} Qa5+ {[%emt 0:06:27]} 54. Kb1 {[%emt 0:00:37]} Qe1+ {[%emt 0:00:19]} 55. Ka2 {[%emt 0:00:43]} Qa5+ {[%emt 0:00:17]} 56. Kb1 {[%emt 0:00:05]} Kd4 {[%emt 0:04:31]} 57. h6 {[%emt 0:02:20]} gxh6 {[%emt 0:01:28]} 58. gxh6 {[%emt 0:00:15]} Be5 {[%emt 0:00:31]} 59. h7 {[%emt 0:02:16]} Qe1+ {[%emt 0:00:19]} 60. Ka2 {[%emt 0:00:09]} Qa5+ {[%emt 0:00:11]} 61. Kb1 {[%emt 0:01:07]} Qe1+ {[%emt 0:01:38]} 62. Ka2 {[%emt 0:00:03]} Qa5+ {[%emt 0:00:16]} 1/2-1/2

[Event "Reykjavik Open 2022"]
[Site "Reykjavik"]
[Date "2022.04.07"]
[Round "2.7"]
[White "Heimisson, Hilmir Freyr"]
[Black "Gupta, Abhijeet"]
[Result "0-1"]
[ECO "D79"]
[WhiteElo "2312"]
[BlackElo "2628"]
[Annotator "RC"]
[PlyCount "84"]
[EventDate "2022.04.06"]
[EventCountry "ISL"]
[SourceTitle "playchess.com"]
[Source "ChessBase"]
[SourceQuality "1"]
[TimeControl "40/5400+30:1800+30"]

1. d4 {[%emt 0:00:04]} Nf6 {[%emt 0:00:17]} 2. c4 {[%emt 0:00:16]} g6 {[%emt 0:00:14]} 3. Nf3 {[%emt 0:00:32]} Bg7 {[%emt 0:00:12]} 4. g3 {[%emt 0:00:12]} O-O {[%emt 0:00:21]} 5. Bg2 {[%emt 0:00:23]} c6 {[%emt 0:01:22]} 6. Nc3 {[%emt 0:02:03]} d5 {[%emt 0:00:13]} 7. cxd5 {[%emt 0:00:56]} cxd5 {[%emt 0:00:04]} 8. Ne5 {[%emt 0:00:10]} e6 {[%emt 0:00:26]} 9. O-O {[%emt 0:00:29]} Nfd7 {[%emt 0:00:10]} 10. Nf3 {[%emt 0:02:45]} Nc6 {[%emt 0:01:01]} 11. Bf4 {[%emt 0:01:14]} Qb6 {[%emt 0:07:40]} 12. Na4 {[%emt 0:03:33]} Qa6 {[%emt 0:00:14]} 13. Rc1 {[%emt 0:16:47]} b5 {[%emt 0:00:45]} 14. Nc3 {[%emt 0:01:51]} Nb6 {[%emt 0:17:25]} 15. Re1 {[%emt 0:28:06]} b4 {[%emt 0:01:53]} 16. Nb1 {[%emt 0:02:01]} Bd7 {[%emt 0:01:05]} 17. e3 {[%emt 0:06:27]} Qxa2 {[%emt 0:05:11]} 18. Nbd2 {[%emt 0:01:07]} Qxb2 {[%emt 0:09:08]} 19. Nb3 {[%emt 0:07:05]} Na4 {[%emt 0:05:13]} 20. Qd3 {[%emt 0:21:38]} e5 {[%emt 0:09:43]} 21. dxe5 {[%emt 0:00:30]} Nc3 {[%emt 0:01:01]} 22. Nbd4 {[%emt 0:01:15]} Nxd4 {[%emt 0:00:05]} 23. Nxd4 {[%emt 0:00:20]} a5 {[%emt 0:00:06]} 24. Rc2 {[%emt 0:02:05]} Qa3 {[%emt 0:00:38]} 25. e4 {[%emt 0:00:27]} dxe4 {[%emt 0:04:17]} 26. Bxe4 {[%emt 0:00:05]} Rac8 {[%emt 0:02:27]} 27. Bc1 {[%emt 0:00:02]} Qa4 {[%emt 0:00:11]} 28. Rd2 {[%emt 0:00:49]} Nxe4 {[%emt 0:03:15]} 29. Qxe4 {[%emt 0:00:20]} Bc6 {[%emt 0:00:51]} 30. Qh4 {[%emt 0:00:40]} Ba8 {[%emt 0:00:24]} 31. Bb2 {[%emt 0:00:32]} Qd7 {[%emt 0:00:47]} 32. Rde2 {[%emt 0:00:34]} Qd5 {[%emt 0:00:30]} 33. f3 {[%emt 0:00:13]} Rc4 {[%emt 0:00:26]} 34. Re4 {[%emt 0:00:30]} Qd8 {[%emt 0:00:18]} 35. Qg4 {[%emt 0:01:08]} Bxe4 {[%emt 0:02:04]} 36. Rxe4 {[%emt 0:00:02]} a4 {[%emt 0:01:49]} 37. e6 {[%emt 0:01:07]} f5 {[%emt 0:01:59]} 38. Nxf5 {[%emt 0:00:23]} Qd1+ {[%emt 0:00:06]} 39. Kg2 {[%emt 0:00:32]} Rc2+ {[%emt 0:00:06]} 40. Kh3 {[%emt 0:00:00]} Qf1+ {[%emt 0:00:00]} 41. Kh4 {[%emt 0:00:28]} Rxh2+ {[%emt 0:00:13]} 42. Kg5 {[%emt 0:00:53]} Rh5+ {[%emt 0:00:30]} 0-1

[Event "Reykjavik Open 2022"]
[Site "Reykjavik"]
[Date "2022.04.07"]
[Round "2.8"]
[White "Warmerdam, Max"]
[Black "Sarkar, Justin"]
[Result "1-0"]
[ECO "A97"]
[WhiteElo "2607"]
[BlackElo "2314"]
[Annotator "RC"]
[PlyCount "73"]
[EventDate "2022.04.06"]
[EventCountry "ISL"]
[SourceTitle "playchess.com"]
[Source "ChessBase"]
[SourceQuality "1"]
[TimeControl "40/5400+30:1800+30"]

1. c4 {[%emt 0:00:03]} f5 {[%emt 0:01:48]} 2. d4 {[%emt 0:00:48]} Nf6 {[%emt 0:00:10]} 3. g3 {[%emt 0:00:10]} e6 {[%emt 0:00:18]} 4. Nf3 {[%emt 0:00:15]} Be7 {[%emt 0:01:20]} 5. Bg2 {[%emt 0:01:33]} O-O {[%emt 0:00:16]} 6. O-O {[%emt 0:00:08]} d6 {[%emt 0:01:04]} 7. Nc3 {[%emt 0:05:02]} Qe8 {[%emt 0:00:20]} 8. b4 {[%emt 0:05:57]} Nc6 {[%emt 0:08:36]} 9. a3 {[%emt 0:08:30]} Ne4 {[%emt 0:03:37]} 10. Bb2 {[%emt 0:01:33]} Nxc3 {[%emt 0:02:05]} 11. Bxc3 {[%emt 0:00:24]} Bf6 {[%emt 0:00:09]} 12. Rc1 {[%emt 0:11:33]} e5 {[%emt 0:05:33]} 13. b5 {[%emt 0:01:01]} Nd8 {[%emt 0:04:11]} 14. e3 {[%emt 0:06:59]} e4 {[%emt 0:08:53]} 15. Nd2 {[%emt 0:01:26]} h5 {[%emt 0:00:12]} 16. f3 {[%emt 0:02:39]} exf3 {[%emt 0:01:20]} 17. Qxf3 {[%emt 0:00:09]} h4 {[%emt 0:00:28]} 18. Rce1 {[%emt 0:07:41]} Ne6 {[%emt 0:08:30]} 19. e4 {[%emt 0:08:23]} Nxd4 {[%emt 0:24:32]} 20. Qd3 {[%emt 0:01:43]} Qe5 {[%emt 0:02:36]} 21. Nb3 {[%emt 0:22:09]} Ne2+ {[%emt 0:02:08]} 22. Qxe2 {[%emt 0:00:34]} Qxc3 {[%emt 0:00:27]} 23. exf5 {[%emt 0:02:33]} Bd7 {[%emt 0:17:50]} 24. Bd5+ {[%emt 0:00:40]} Rf7 {[%emt 0:00:06]} 25. Rf3 {[%emt 0:01:06]} Qe5 {[%emt 0:00:35]} 26. Qxe5 {[%emt 0:00:42]} Bxe5 {[%emt 0:00:07]} 27. Bxb7 {[%emt 0:00:28]} Raf8 {[%emt 0:00:45]} 28. Bd5 {[%emt 0:00:07]} hxg3 {[%emt 0:00:24]} 29. hxg3 {[%emt 0:00:14]} Kh7 {[%emt 0:00:09]} 30. Bxf7 {[%emt 0:00:53]} Rxf7 {[%emt 0:00:05]} 31. g4 {[%emt 0:01:27]} Kh6 {[%emt 0:00:13]} 32. Re4 {[%emt 0:02:26]} Kg5 {[%emt 0:01:22]} 33. Nc5 {[%emt 0:03:37]} Bc8 {[%emt 0:00:39]} 34. Ne6+ {[%emt 0:00:45]} Bxe6 {[%emt 0:00:33]} 35. fxe6 {[%emt 0:00:04]} Re7 {[%emt 0:00:44]} 36. Rf7 {[%emt 0:00:29]} Rxe6 {[%emt 0:00:07]} 37. Kg2 {[%emt 0:03:07]} 1-0

[Event "Reykjavik Open 2022"]
[Site "Reykjavik"]
[Date "2022.04.07"]
[Round "2.9"]
[White "Fier, Alexandr"]
[Black "Bjornsson, Sigurbjorn"]
[Result "1-0"]
[ECO "B31"]
[WhiteElo "2583"]
[BlackElo "2315"]
[Annotator "RC"]
[PlyCount "51"]
[EventDate "2022.04.06"]
[EventCountry "ISL"]
[SourceTitle "playchess.com"]
[Source "ChessBase"]
[SourceQuality "1"]
[TimeControl "40/5400+30:1800+30"]

1. e4 {[%emt 0:00:03]} c5 {[%emt 0:01:55]} 2. Nf3 {[%emt 0:00:06]} Nc6 {[%emt 0:01:12]} 3. Bb5 {[%emt 0:00:19]} g6 {[%emt 0:01:05]} 4. O-O {[%emt 0:00:06]} Bg7 {[%emt 0:00:11]} 5. c3 {[%emt 0:00:04]} Qb6 {[%emt 0:02:45]} 6. Na3 {[%emt 0:01:39]} a6 {[%emt 0:01:40]} 7. Ba4 {[%emt 0:01:23]} Nf6 {[%emt 0:07:50]} 8. e5 {[%emt 0:00:33]} Ng4 {[%emt 0:04:48]} 9. d4 {[%emt 0:00:10]} cxd4 {[%emt 0:00:30]} 10. cxd4 {[%emt 0:00:08]} O-O {[%emt 0:00:42]} 11. h3 {[%emt 0:01:33]} Nh6 {[%emt 0:02:13]} 12. d5 {[%emt 0:00:05]} Nb4 {[%emt 0:15:32]} 13. Be3 {[%emt 0:01:05]} Qa5 {[%emt 0:04:09]} 14. Bb3 {[%emt 0:01:52]} d6 {[%emt 0:14:09]} 15. Qd2 {[%emt 0:05:12]} Nf5 {[%emt 0:00:28]} 16. Nc4 {[%emt 0:00:04]} Qxd5 {[%emt 0:04:26]} 17. Qxb4 {[%emt 0:00:06]} Qe4 {[%emt 0:01:37]} 18. Bd2 {[%emt 0:02:08]} a5 {[%emt 0:05:02]} 19. Nxa5 {[%emt 0:01:15]} Qxb4 {[%emt 0:00:55]} 20. Bxb4 {[%emt 0:00:04]} dxe5 {[%emt 0:00:05]} 21. Nc4 {[%emt 0:00:04]} e4 {[%emt 0:05:08]} 22. Nfd2 {[%emt 0:00:06]} b5 {[%emt 0:00:26]} 23. Nb6 {[%emt 0:00:06]} Rb8 {[%emt 0:00:45]} 24. Nxc8 {[%emt 0:00:06]} Rfxc8 {[%emt 0:00:17]} 25. Nxe4 {[%emt 0:00:05]} Bxb2 {[%emt 0:00:52]} 26. Rad1 {[%emt 0:00:03]} 1-0

[Event "Reykjavik Open 2022"]
[Site "Reykjavik"]
[Date "2022.04.07"]
[Round "2.10"]
[White "Soham Das"]
[Black "Cornette, Matthieu"]
[Result "0-1"]
[ECO "D30"]
[WhiteElo "2330"]
[BlackElo "2571"]
[Annotator "ChessBase"]
[PlyCount "62"]
[EventDate "2022.04.06"]
[EventCountry "ISL"]
[SourceTitle "playchess.com"]
[Source "ChessBase"]
[SourceQuality "1"]
[TimeControl "40/5400+30:1800+30"]

1. d4 {[%emt 0:05:47]} d5 {[%emt 0:00:19]} 2. c4 {[%emt 0:00:21]} e6 {[%emt 0:00:16]} 3. Nf3 {[%emt 0:00:04]} a6 {[%emt 0:01:14]} 4. g3 {[%emt 0:00:05]} dxc4 {[%emt 0:00:32]} 5. Bg2 {[%emt 0:00:50]} Nc6 {[%emt 0:00:17]} 6. Nbd2 {[%emt 0:08:28]} Nxd4 {[%emt 0:08:53]} 7. O-O {[%emt 0:01:30]} Nc6 {[%emt 0:04:05]} 8. Nxc4 {[%emt 0:06:59]} Qxd1 {[%emt 0:03:11]} 9. Rxd1 {[%emt 0:00:04]} f6 {[%emt 0:02:11]} 10. Bd2 {[%emt 0:09:53]} Bd7 {[%emt 0:06:53]} 11. Na5 {[%emt 0:02:16]} O-O-O {[%emt 0:06:06]} 12. Rac1 {[%emt 0:03:14]} Nge7 {[%emt 0:01:35]} 13. Nb3 {[%emt 0:23:46]} Nd5 {[%emt 0:10:46]} 14. Ne1 {[%emt 0:08:47]} Bd6 {[%emt 0:06:52]} 15. Nd3 {[%emt 0:01:05]} b6 {[%emt 0:01:43]} 16. Bxd5 {[%emt 0:14:16]} exd5 {[%emt 0:00:07]} 17. Bf4 {[%emt 0:00:02]} Be8 {[%emt 0:12:29]} 18. Rc2 {[%emt 0:02:07]} Ne5 {[%emt 0:02:44]} 19. Nxe5 {[%emt 0:04:41]} Bxe5 {[%emt 0:00:34]} 20. Nd4 {[%emt 0:00:46]} c5 {[%emt 0:04:49]} 21. Nf5 {[%emt 0:03:02]} Bxf4 {[%emt 0:04:11]} 22. gxf4 {[%emt 0:00:04]} Kb7 {[%emt 0:01:22]} 23. Rcd2 {[%emt 0:01:40]} d4 {[%emt 0:01:35]} 24. e4 {[%emt 0:02:09]} Bh5 {[%emt 0:02:06]} 25. Re1 {[%emt 0:00:07]} Bg4 {[%emt 0:05:10]} 26. Ng3 {[%emt 0:00:32]} c4 {[%emt 0:01:44]} 27. Rc1 {[%emt 0:00:21]} b5 {[%emt 0:00:29]} 28. Kg2 {[%emt 0:00:30]} Be6 {[%emt 0:00:42]} 29. f5 {[%emt 0:00:16]} Bf7 {[%emt 0:00:09]} 30. f4 {[%emt 0:00:09]} Rhe8 {[%emt 0:00:25]} 31. a3 {[%emt 0:00:03]} a5 {[%emt 0:01:52]} 0-1

[Event "Reykjavik Open 2022"]
[Site "Reykjavik"]
[Date "2022.04.07"]
[Round "2.11"]
[White "De Wachter, Matthias"]
[Black "Steingrimsson, Hedinn"]
[Result "0-1"]
[ECO "E36"]
[WhiteElo "2322"]
[BlackElo "2535"]
[Annotator "ChessBase"]
[PlyCount "74"]
[EventDate "2022.04.06"]
[EventCountry "ISL"]
[SourceTitle "playchess.com"]
[Source "ChessBase"]
[SourceQuality "1"]
[TimeControl "40/5400+30:1800+30"]

1. d4 {[%emt 0:00:08]} Nf6 {[%emt 0:10:08]} 2. c4 {[%emt 0:00:12]} e6 {[%emt 0:00:19]} 3. Nc3 {[%emt 0:00:12]} Bb4 {[%emt 0:00:03]} 4. Qc2 {[%emt 0:00:14]} O-O {[%emt 0:00:31]} 5. Nf3 {[%emt 0:00:12]} d5 {[%emt 0:00:12]} 6. a3 {[%emt 0:00:27]} Bxc3+ {[%emt 0:00:59]} 7. Qxc3 {[%emt 0:00:12]} dxc4 {[%emt 0:00:07]} 8. Qxc4 {[%emt 0:00:11]} b6 {[%emt 0:00:05]} 9. Bg5 {[%emt 0:00:14]} Bb7 {[%emt 0:00:07]} 10. Rd1 {[%emt 0:02:41]} Nbd7 {[%emt 0:00:37]} 11. Ne5 {[%emt 0:01:24]} h6 {[%emt 0:00:12]} 12. Nxd7 {[%emt 0:26:22]} Qxd7 {[%emt 0:01:00]} 13. Bxf6 {[%emt 0:00:08]} gxf6 {[%emt 0:00:05]} 14. e3 {[%emt 0:02:01]} Qd6 {[%emt 0:02:23]} 15. f3 {[%emt 0:02:50]} f5 {[%emt 0:09:04]} 16. Be2 {[%emt 0:04:08]} Kh8 {[%emt 0:08:46]} 17. g3 {[%emt 0:10:18]} Rg8 {[%emt 0:04:44]} 18. Kf2 {[%emt 0:00:15]} Rg7 {[%emt 0:00:42]} 19. Rhg1 {[%emt 0:02:01]} Rag8 {[%emt 0:02:45]} 20. Rc1 {[%emt 0:10:49]} f6 {[%emt 0:04:14]} 21. Rcd1 {[%emt 0:07:54]} h5 {[%emt 0:06:27]} 22. f4 {[%emt 0:03:08]} h4 {[%emt 0:28:38]} 23. Bf3 {[%emt 0:00:49]} Bxf3 {[%emt 0:07:22]} 24. Kxf3 {[%emt 0:00:01]} Rh7 {[%emt 0:00:20]} 25. d5 {[%emt 0:08:05]} e5 {[%emt 0:02:14]} 26. Qc6 {[%emt 0:01:01]} hxg3 {[%emt 0:02:29]} 27. hxg3 {[%emt 0:00:21]} Qf8 {[%emt 0:04:18]} 28. Qe6 {[%emt 0:02:13]} e4+ {[%emt 0:02:50]} 29. Kf2 {[%emt 0:03:28]} Qg7 {[%emt 0:00:01]} 30. Qxf5 {[%emt 0:06:46]} Rh2+ {[%emt 0:00:02]} 31. Kf1 {[%emt 0:01:14]} Qh6 {[%emt 0:00:02]} 32. d6 {[%emt 0:02:11]} cxd6 {[%emt 0:00:03]} 33. Rxd6 {[%emt 0:00:07]} Rxb2 {[%emt 0:01:05]} 34. Qxe4 {[%emt 0:00:52]} Rc8 {[%emt 0:02:50]} 35. Ke1 {[%emt 0:00:55]} Qh2 {[%emt 0:01:06]} 36. Rd8+ {[%emt 0:03:09]} Rxd8 {[%emt 0:00:13]} 37. Rh1 {[%emt 0:00:01]} Re2+ {[%emt 0:00:34]} 0-1

[Event "Reykjavik Open 2022"]
[Site "Reykjavik"]
[Date "2022.04.07"]
[Round "2.12"]
[White "Berdnyk, Mariia"]
[Black "Maze, Sebastien"]
[Result "0-1"]
[ECO "E94"]
[WhiteElo "2287"]
[BlackElo "2527"]
[Annotator "RC"]
[PlyCount "46"]
[EventDate "2022.04.06"]
[EventCountry "ISL"]
[SourceTitle "playchess.com"]
[Source "ChessBase"]
[SourceQuality "1"]
[TimeControl "40/5400+30:1800+30"]

1. d4 {[%emt 0:00:02]} d6 {[%emt 0:00:03]} 2. Nf3 {[%emt 0:01:12]} Nf6 {[%emt 0:00:07]} 3. c4 {[%emt 0:00:05]} g6 {[%emt 0:00:03]} 4. Nc3 {[%emt 0:00:04]} Bg7 {[%emt 0:00:02]} 5. e4 {[%emt 0:00:06]} O-O {[%emt 0:00:05]} 6. Be2 {[%emt 0:00:02]} Na6 {[%emt 0:00:04]} 7. O-O {[%emt 0:01:00]} e5 {[%emt 0:00:04]} 8. Be3 {[%emt 0:00:09]} c6 {[%emt 0:00:04]} 9. Re1 {[%emt 0:00:26]} Qe8 {[%emt 0:00:59]} 10. h3 {[%emt 0:00:43]} Nd7 {[%emt 0:08:19]} 11. Qd2 {[%emt 0:04:53]} f5 {[%emt 0:02:23]} 12. exf5 {[%emt 0:08:46]} gxf5 {[%emt 0:00:02]} 13. dxe5 {[%emt 0:02:54]} dxe5 {[%emt 0:00:02]} 14. Bh6 {[%emt 0:01:30]} Qg6 {[%emt 0:06:54]} 15. Bxg7 {[%emt 0:00:25]} Qxg7 {[%emt 0:00:08]} 16. Rad1 {[%emt 0:08:31]} e4 {[%emt 0:01:42]} 17. Nd4 {[%emt 0:01:43]} Ne5 {[%emt 0:00:10]} 18. Qe3 {[%emt 0:14:10]} f4 {[%emt 0:06:46]} 19. Qxe4 {[%emt 0:01:46]} Nc5 {[%emt 0:00:04]} 20. Qc2 {[%emt 0:03:12]} Bxh3 {[%emt 0:02:03]} 21. g3 {[%emt 0:06:39]} fxg3 {[%emt 0:00:28]} 22. f3 {[%emt 0:00:02]} Rad8 {[%emt 0:01:56]} 23. Ne4 {[%emt 0:02:21]} Ned3 {[%emt 0:01:19]} 0-1